bitfinex-derivatives/quotes_SOLF0:USTF0_20250130
["timestamp","ask_amount","ask_price","bid_price","bid_amount"]
[1738243583386,0.03167869,240.9,240.87,4.1521]
[1738243584591,0.03167869,240.9,240.87,11.29720489]
[1738243585390,0.03167869,240.9,240.89,7.14510489]
[1738243585587,0.03167869,240.9,240.89,11.29690489]
[1738243585887,0.03167869,240.9,240.89,7.14510489]
[1738243588989,0.03167869,240.9,240.89,11.29690489]
[1738243593188,0.03167869,240.9,240.89,7.14510489]
[1738243593791,0.03167869,240.9,240.85,7.14510489]
[1738243595389,0.03167869,240.9,240.84,0.03081503]
[1738243595390,7.14510489,240.88,240.84,0.03081503]
[1738243595591,7.14510489,240.86,240.77,7.14510489]
[1738243595787,7.14510489,240.84,240.77,7.14510489]
[1738243596089,7.14510489,240.86,240.77,7.14510489]
[1738243596691,12.48503745,240.89,240.74,11.17333745]
[1738243596892,0.03095676,240.84,240.79,0.02636104]
[1738243597289,4.1538,240.78,240.72,4.1546]
[1738243597493,11.17333745,240.86,240.7,11.17333745]
[1738243597697,12.48503745,240.89,240.73,11.17333745]
[1738243598093,4.1533,240.81,240.73,11.17333745]
[1738243598492,0.02958951,240.79,240.75,0.02794304]
[1738243600401,0.02958951,240.79,240.76,11.17333745]
[1738243601100,0.02958951,240.79,240.78,4.1537]
[1738243601303,4.1523,240.87,240.76,11.17333745]
[1738243601507,4.1523,240.87,240.8,11.17333745]
[1738243601993,1.3576,240.9,240.8,11.17333745]
[1738243602397,1.3576,240.9,240.83,0.03051162]
[1738243602595,0.02871641,240.87,240.83,0.03051162]
[1738243603105,0.02871641,240.87,240.83,4.18321162]
[1738243603305,0.02871641,240.87,240.83,0.03051162]
[1738243603601,0.02871641,240.87,240.85,4.1525]
[1738243604407,0.02871641,240.87,240.83,11.20384907]
[1738243604706,0.02871641,240.87,240.86,4.1524]
[1738243605902,0.02871641,240.87,240.83,11.20384907]
[1738243606708,0.02871641,240.87,240.85,4.1525]
[1738243607305,0.02871641,240.87,240.83,11.20384907]
[1738243607905,0.02871641,240.87,240.83,0.03051162]
[1738243608114,0.02871641,240.87,240.83,11.20384907]
[1738243609211,0.02871641,240.87,240.86,4.1524]
[1738243609809,0.02871641,240.87,240.85,4.1525]
[1738243610108,0.02871641,240.87,240.83,11.20384907]
[1738243610710,0.02871641,240.87,240.86,4.1524]
[1738243611813,11.17333745,240.98,240.86,4.1524]
[1738243611814,45.85459502,241.03,240.97,4.1503]
[1738243612115,45.85459502,241.03,240.96,11.17333745]
[1738243612418,50.00409502,241.03,240.96,15.32383745]
[1738243613013,5.76131927,241.01,240.96,15.35210782]
[1738243613613,5.76131927,241.01,240.98,4.1503]
[1738243613810,5.76131927,241.01,240.96,11.20160782]
[1738243614220,17.12587126,241.02,241.0,11.17333745]
[1738243614609,4.1485,241.09,241.0,11.17333745]
[1738243614815,4.1485,241.09,241.04,15.32253745]
[1738243615109,5.75866602,241.1,241.04,15.32253745]
[1738243615316,5.75866602,241.1,241.04,11.17333745]
[1738243615918,0.03194276,241.09,241.05,0.02941142]
[1738243616918,0.03194276,241.09,241.07,11.17333745]
[1738243619821,0.03194276,241.09,241.05,0.02941142]
[1738243620723,4.1488,241.07,241.05,0.02941142]
[1738243621117,0.03194276,241.09,241.05,0.02941142]
[1738243621829,4.1489,241.06,241.05,0.02941142]
[1738243622726,4.1496,241.02,240.98,11.17333745]
[1738243623723,4.1496,241.02,240.98,11.20102682]
[1738243623925,4.18131467,241.02,240.98,11.20102682]
[1738243624324,0.03171467,241.02,240.99,4.1501]
[1738243624525,0.03171467,241.02,241.01,11.17333745]
[1738243625327,0.03171467,241.02,240.98,0.02768937]
[1738243626221,4.1498,241.01,240.98,0.02768937]
[1738243626426,0.03171467,241.02,240.98,0.02768937]
[1738243626620,0.03171467,241.02,240.91,11.17333745]
[1738243626924,11.17333745,241.07,240.91,11.17333745]
[1738243627520,11.17333745,241.07,240.97,4.1504]
[1738243627731,1.3749,241.06,240.97,4.1504]
[1738243627928,0.02833998,241.04,241.0,0.02778487]
[1738243628129,4.1498,241.01,241.0,0.02778487]
[1738243629124,0.02833998,241.04,241.0,0.02778487]
[1738243629330,4.1496,241.03,241.0,0.02778487]
[1738243629525,0.02833998,241.04,241.0,4.17768487]
[1738243630326,4.1494,241.03,241.0,0.02778487]
[1738243631031,4.1498,241.01,241.0,0.02778487]
[1738243632229,4.1495,241.03,241.0,0.02778487]
[1738243632730,0.02833998,241.04,241.0,0.02778487]
[1738243633626,0.02833998,241.04,241.01,4.1498]
[1738243634231,0.02833998,241.04,241.0,0.02778487]
[1738243634531,4.1497,241.02,241.0,0.02778487]
[1738243634832,4.1497,241.02,240.97,1.45870063]
[1738243635130,0.02833998,241.04,240.97,1.45870063]
[1738243635932,4.1496,241.03,240.99,4.15]
[1738243640135,0.02833998,241.04,241.02,4.1496]
[1738243640335,0.02833998,241.04,240.98,0.02960533]
[1738243640838,0.02833998,241.04,241.0,4.1498]
[1738243641136,0.02833998,241.04,240.98,0.02960533]
[1738243641436,4.1496,241.02,240.99,4.15]
[1738243641733,0.02833998,241.04,240.98,0.02960533]
[1738243642735,0.02833998,241.04,241.01,4.1497]
[1738243642936,0.02833998,241.04,240.98,0.02960533]
[1738243643533,4.17763998,241.04,240.98,0.02960533]
[1738243643729,4.17763998,241.04,241.01,4.1497]
[1738243644844,0.02833998,241.04,240.98,0.02960533]
[1738243646135,4.1498,241.02,240.98,4.17990533]
[1738243646336,0.02833998,241.04,240.98,0.02960533]
[1738243646538,0.02833998,241.04,241.03,7.13612035]
[1738243648843,0.02833998,241.04,241.03,11.28552035]
[1738243652150,0.02833998,241.04,241.01,11.28582035]
[1738243652948,0.02833998,241.04,241.01,7.13612035]
[1738243653149,0.02833998,241.04,241.02,4.1496]
[1738243653642,0.02833998,241.04,241.03,7.13612035]
[1738243654645,0.02833998,241.04,241.02,4.1496]
[1738243655739,0.02833998,241.04,240.99,11.14974122]
[1738243655937,0.02833998,241.04,241.0,4.1498]
[1738243656148,0.02833998,241.04,240.99,1.408644]
[1738243657045,0.02833998,241.04,241.0,4.1498]
[1738243657346,4.17763998,241.04,241.0,4.1498]
[1738243657948,4.17763998,241.04,241.01,4.1498]
[1738243658248,0.02833998,241.04,241.01,4.1498]
[1738243660046,4.17763998,241.04,241.01,4.1498]
[1738243660454,0.02833998,241.04,240.98,0.02960533]
[1738243660843,4.1499,241.01,240.98,0.02960533]
[1738243661452,4.1499,241.01,240.98,4.17990533]
[1738243662451,4.1496,241.02,240.98,4.17990533]
[1738243662954,0.02833998,241.04,240.98,0.02960533]
[1738243663154,0.02833998,241.04,241.01,4.1498]
[1738243663350,0.02833998,241.04,240.98,0.02960533]
[1738243665046,0.02833998,241.04,241.01,4.1497]
[1738243666051,4.17763998,241.04,241.01,4.1497]
[1738243667255,4.15,241.0,240.98,0.02960533]
[1738243668154,0.02833998,241.04,240.98,0.02960533]
[1738243668656,4.17763998,241.04,241.01,4.1497]
[1738243670253,4.17763998,241.04,240.99,4.15]
[1738243670449,0.02833998,241.04,240.99,4.15]
[1738243671057,4.1498,241.02,240.98,4.17990533]
[1738243671357,0.02833998,241.04,240.98,0.02960533]
[1738243671655,4.1501,240.99,240.98,0.02960533]
[1738243673169,0.02833998,241.04,240.98,0.02960533]
[1738243673661,4.1498,241.01,240.98,0.02960533]
[1738243673855,0.02833998,241.04,240.98,0.02960533]
[1738243674559,7.14071256,241.03,240.98,0.02960533]
[1738243674757,8.52711256,241.03,240.98,0.02960533]
[1738243675062,4.15,241.0,240.98,0.02960533]
[1738243677161,4.15,241.0,240.96,7.14071256]
[1738243678062,4.1497,241.02,240.96,7.14071256]
[1738243678258,1.3864,241.03,240.96,7.14071256]
[1738243678460,1.3864,241.03,240.97,0.02731341]
[1738243679261,4.1501,241.0,240.97,0.02731341]
[1738243679762,4.1503,240.99,240.97,0.02731341]
[1738243681163,4.1503,240.98,240.97,0.02731341]
[1738243683665,7.14071256,240.99,240.9,11.29231256]
[1738243684066,4.1506,240.97,240.92,7.14071256]
[1738243684257,7.14071256,240.99,240.92,7.14071256]
[1738243684465,9.85201256,241.03,240.94,7.14071256]
[1738243684670,0.02954616,240.98,240.94,7.14071256]
[1738243685162,0.02954616,240.98,240.93,0.02982146]
[1738243686066,4.17994616,240.98,240.94,4.1508]
[1738243686563,0.02954616,240.98,240.93,0.02982146]
[1738243687960,0.02954616,240.98,240.94,7.14071256]
[1738243688662,4.17984616,240.98,240.94,11.29171256]
[1738243689162,0.02954616,240.98,240.94,7.14071256]
[1738243689367,0.02954616,240.98,240.93,0.02982146]
[1738243689965,0.02954616,240.98,240.94,7.14071256]
[1738243690866,4.17994616,240.98,240.94,11.29171256]
[1738243691967,4.1505,240.97,240.94,11.29171256]
[1738243692367,0.02954616,240.98,240.93,0.02982146]
[1738243692569,4.1506,240.96,240.93,0.02982146]
[1738243693267,4.1509,240.95,240.93,0.02982146]
[1738243693865,4.151,240.94,240.93,0.02982146]
[1738243694466,4.1507,240.96,240.93,0.02982146]
[1738243695270,4.1507,240.96,240.93,4.18092146]
[1738243695769,4.1509,240.95,240.93,0.02982146]
[1738243696470,0.02954616,240.98,240.93,0.02982146]
[1738243696672,0.02954616,240.98,240.94,7.14071256]
[1738243697172,4.17984616,240.98,240.95,11.29151256]
[1738243697362,4.17984616,240.98,240.95,7.14071256]
[1738243699174,0.02954616,240.98,240.95,11.29141256]
[1738243701071,4.17984616,240.98,240.95,11.29141256]
[1738243701872,4.17984616,240.98,240.95,4.1507]
[1738243702173,4.1506,240.97,240.94,0.02816876]
[1738243702365,0.02954616,240.98,240.94,0.02816876]
[1738243703364,4.1508,240.96,240.94,0.02816876]
[1738243705369,4.1508,240.95,240.94,0.02816876]
[1738243705973,11.29151256,240.95,240.94,0.02816876]
[1738243706973,4.1519,240.89,240.86,7.52102755]
[1738243708077,0.02829732,240.9,240.86,7.52102755]
[1738243708272,0.02829732,240.9,240.85,7.16934571]
[1738243708273,4.1521,240.88,240.85,7.16934571]
[1738243708978,4.1523,240.87,240.85,0.02863315]
[1738243709676,4.1524,240.86,240.85,0.02863315]
[1738243711677,8.54341256,240.89,240.85,0.02863315]
[1738243711875,4.1522,240.87,240.85,0.02863315]
[1738243712382,12.69541256,240.89,240.85,0.02863315]
[1738243712577,8.54341256,240.89,240.85,0.02863315]
[1738243713584,4.1524,240.86,240.85,0.02863315]
[1738243714175,4.1524,240.86,240.79,7.14071256]
[1738243714176,4.153,240.83,240.79,11.29421256]
[1738243714375,4.153,240.83,240.79,4.1535]
[1738243714674,4.153,240.83,240.77,7.14071256]
[1738243714675,7.14071256,240.85,240.77,7.14071256]
[1738243714874,4.1534,240.81,240.77,11.29451256]
[1738243715281,0.0283891,240.81,240.79,4.1535]
[1738243717088,0.0283891,240.81,240.77,7.17161165]
[1738243718792,0.0283891,240.81,240.78,7.14071256]
[1738243719389,0.0283891,240.81,240.76,7.14071256]
[1738243719792,0.0283891,240.81,240.79,4.1536]
[1738243720188,7.16910166,240.81,240.74,7.14071256]
[1738243720493,4.1538,240.78,240.75,4.1542]
[1738243721791,7.16910166,240.81,240.74,7.14071256]
[1738243721991,4.1536,240.79,240.76,4.1541]
[1738243722193,0.0283891,240.81,240.74,7.14071256]
[1738243723586,4.1535,240.8,240.76,4.1539]
[1738243724496,0.0283891,240.81,240.78,7.14071256]
[1738243725596,0.0283891,240.81,240.8,4.1534]
[1738243726499,0.0283891,240.81,240.8,11.29411256]
[1738243727394,7.14071256,240.93,240.8,7.14071256]
[1738243727697,7.14071256,240.93,240.85,7.14071256]
[1738243728598,0.02687002,240.91,240.87,0.02667034]
[1738243728899,4.1519,240.89,240.87,0.02667034]
[1738243729098,0.02687002,240.91,240.87,0.02667034]
[1738243730096,4.1517,240.9,240.87,0.02667034]
[1738243730503,7.16758258,240.91,240.87,0.02667034]
[1738243730701,4.152,240.88,240.87,0.02667034]
[1738243735907,4.1519,240.89,240.87,0.02667034]
[1738243736101,7.16758258,240.91,240.87,0.02667034]
[1738243736796,4.152,240.88,240.87,0.02667034]
[1738243750816,0.02687002,240.91,240.87,7.1673829]
[1738243751012,0.02687002,240.91,240.89,7.14071256]
[1738243751924,0.02687002,240.91,240.9,4.1517]
[1738243755023,4.1498,241.01,240.89,7.14071256]
[1738243755224,8.59391256,241.05,240.97,7.14071256]
[1738243756125,8.59391256,241.05,240.9,1.4025]
[1738243756126,7.14071256,241.01,240.99,0.02897075]
[1738243756324,7.17120972,241.03,240.99,0.02897075]
[1738243756525,4.1499,241.0,240.99,0.02897075]
[1738243757122,7.17120972,241.03,240.99,0.02897075]
[1738243757326,4.1498,241.01,240.99,0.02897075]
[1738243758129,4.1499,241.0,240.99,0.02897075]
[1738243759335,0.03049716,241.03,240.99,0.02897075]
[1738243759536,7.17120972,241.03,240.99,0.02897075]
[1738243761236,4.1498,241.01,240.99,0.02897075]
[1738243762435,0.03049716,241.03,240.99,0.02897075]
[1738243762629,4.17989716,241.03,241.0,4.1499]
[1738243763438,4.1499,241.01,240.99,0.02897075]
[1738243763630,7.14071256,241.01,240.99,0.02897075]
[1738243763835,7.17120972,241.03,240.99,0.02897075]
[1738243764836,0.03049716,241.03,241.0,4.1499]
[1738243765033,0.03049716,241.03,240.99,0.02897075]
[1738243765438,0.03049716,241.03,240.99,7.16968331]
[1738243766435,0.03049716,241.03,241.01,4.1496]
[1738243767437,0.03049716,241.03,241.02,4.1496]
[1738243769643,7.14071256,241.14,241.07,4.1486]
[1738243769840,7.14071256,241.14,241.07,7.14071256]
[1738243770844,0.03012912,241.13,241.08,0.03118902]
[1738243771045,4.148,241.12,241.08,4.17968902]
[1738243771245,0.03012912,241.13,241.08,0.03118902]
[1738243771543,0.03012912,241.13,241.09,4.1484]
[1738243772040,0.03012912,241.13,241.08,0.03118902]
[1738243772844,4.17792912,241.13,241.09,4.1484]
[1738243774141,7.14071256,241.16,241.09,4.1484]
[1738243774345,7.14071256,241.24,241.14,7.14071256]
[1738243774649,4.1461,241.23,241.2,7.14071256]
[1738243774844,7.14071256,241.3,241.22,7.14071256]
[1738243775143,4.0978,241.31,241.24,7.14071256]
[1738243775345,5.77216162,241.35,241.3,7.14071256]
[1738243775545,5.77216162,241.35,241.33,7.14071256]
[1738243775743,5.77216162,241.35,241.33,4.1442]
[1738243775938,12.94226202,241.35,241.32,0.03187409]
[1738243776447,4.1442,241.34,241.32,0.03187409]
[1738243778038,0.02938784,241.35,241.32,0.03187409]
[1738243778238,0.02938784,241.35,241.34,11.12828948]
[1738243779949,1.3125,241.46,241.34,11.12828948]
[1738243780545,1.3125,241.46,241.39,4.1432]
[1738243781047,1.3125,241.46,241.4,4.143]
[1738243781246,0.03048289,241.45,241.4,15.30131707]
[1738243783546,0.03048289,241.45,241.4,11.15831707]
[1738243783743,0.03048289,241.45,241.43,11.12828948]
[1738243783949,0.03048289,241.45,241.4,0.03002759]
[1738243784942,4.17278289,241.45,241.4,0.03002759]
[1738243785246,0.03048289,241.45,241.4,0.03002759]
[1738243785649,0.03048289,241.45,241.4,4.17312759]
[1738243786052,0.03048289,241.45,241.4,0.03002759]
[1738243787245,0.03048289,241.45,241.41,4.1429]
[1738243789153,4.17268289,241.45,241.41,4.1429]
[1738243790151,0.03048289,241.45,241.44,4.1424]
[1738243791153,0.03048289,241.45,241.42,4.1426]
[1738243791956,1.3402,241.63,241.42,11.12828948]
[1738243792144,2.7733,241.63,241.47,11.12828948]
[1738243792453,4.1405,241.55,241.5,4.1413]
[1738243792653,4.1405,241.55,241.47,11.12828948]
[1738243792953,4.1405,241.55,241.49,4.1415]
[1738243793154,0.03165912,241.53,241.49,0.02684534]
[1738243793351,0.03165912,241.53,241.5,11.12828948]
[1738243793652,0.03165912,241.53,241.49,0.02684534]
[1738243793854,4.17255912,241.53,241.49,0.02684534]
[1738243794054,0.03165912,241.53,241.51,4.1412]
[1738243794749,0.03165912,241.53,241.49,0.02684534]
[1738243794951,0.03165912,241.53,241.49,4.16824534]
[1738243795755,0.03165912,241.53,241.49,0.02684534]
[1738243797154,4.17255912,241.53,241.49,0.02684534]
[1738243797451,0.03165912,241.53,241.49,0.02684534]
[1738243797653,4.141,241.52,241.49,0.02684534]
[1738243798156,0.03165912,241.53,241.49,0.02684534]
[1738243798754,0.03165912,241.53,241.5,4.1413]
[1738243798957,4.14,241.58,241.5,11.12828948]
[1738243799152,13.90918948,241.66,241.54,4.1407]
[1738243799554,4.1398,241.59,241.54,4.1407]
[1738243800151,4.1412,241.51,241.44,11.12828948]
[1738243800354,11.12828948,241.53,241.32,11.12828948]
[1738243800552,1.3517,241.52,241.39,11.12828948]
[1738243800752,4.1413,241.51,241.39,11.12828948]
[1738243800957,1.3517,241.52,241.43,11.12828948]
[1738243801357,0.02885399,241.5,241.45,0.03129738]
[1738243801560,0.02885399,241.5,241.47,11.12828948]
[1738243801763,1.3808,241.58,241.47,11.12828948]
[1738243801958,1.3517,241.65,241.51,11.12828948]
[1738243802266,99.0,241.98,241.45,0.03129738]
[1738243802267,11.12828948,241.86,241.64,11.12828948]
[1738243802455,11.12828948,241.86,241.68,11.12828948]
[1738243802659,11.12828948,241.82,241.65,11.12828948]
[1738243802964,11.12828948,241.78,241.75,0.03012709]
[1738243803259,11.12828948,241.78,241.57,11.12828948]
[1738243803465,11.12828948,241.74,241.57,11.12828948]
[1738243803764,11.12828948,241.74,241.62,4.1392]
[1738243803963,11.12828948,241.78,241.61,11.12828948]
[1738243804161,1.3508,241.81,241.65,11.12828948]
[1738243804357,1.3508,241.81,241.56,11.12828948]
[1738243804358,0.02703253,241.72,241.67,0.02672595]
[1738243804559,11.12828948,241.9,241.71,11.12828948]
[1738243804766,2.6666,241.89,241.71,11.12828948]
[1738243804961,1.3508,241.89,241.8,11.12828948]
[1738243805156,1.3508,241.89,241.76,1.71238948]
[1738243805357,1.3508,241.89,241.57,11.12828948]
[1738243805358,11.12828948,241.77,241.57,11.12828948]
[1738243805564,11.12828948,241.77,241.44,11.12828948]
[1738243805565,11.12828948,241.82,241.61,11.12828948]
[1738243805759,2.7401,241.88,241.66,11.12828948]
[1738243805760,1.4318,241.81,241.66,11.12828948]
[1738243805966,0.02670308,241.69,241.65,0.02773264]
[1738243806263,12.53168948,241.7,241.6,4.1396]
[1738243806465,1.4318,241.81,241.65,0.02717437]
[1738243806670,11.12828948,241.71,241.53,11.12828948]
[1738243806963,1.3367,241.7,241.57,11.12828948]
[1738243807271,11.12828948,241.75,241.57,11.12828948]
[1738243807470,11.12828948,241.75,241.59,4.1398]
[1738243807667,11.12828948,241.75,241.57,11.12828948]
[1738243807868,0.02973049,241.69,241.65,0.02905486]
[1738243808870,1.4034,241.8,241.67,17.74759514]
[1738243809873,1.3245,241.9,241.71,17.74759514]
[1738243810065,0.03095449,241.76,241.75,17.74759514]
[1738243810370,2.7492,241.9,241.75,17.74759514]
[1738243810570,2.7492,241.9,241.72,1.4025]
[1738243810870,17.74759514,241.88,241.72,1.4025]
[1738243811071,17.74759514,241.84,241.63,17.74759514]
[1738243811372,17.74759514,241.84,241.71,4.1377]
[1738243811570,0.02675965,241.76,241.71,0.03095728]
[1738243814171,0.02675965,241.76,241.73,4.1374]
[1738243814477,0.02675965,241.76,241.71,0.03095728]
[1738243814878,17.77435479,241.76,241.55,17.74759514]
[1738243815077,1.4392,241.75,241.55,17.74759514]
[1738243815279,17.74759514,241.72,241.51,17.74759514]
[1738243815581,17.74759514,241.64,241.45,1.3762]
[1738243815773,4.1403,241.57,241.45,1.3762]
[1738243815974,17.74759514,241.56,241.46,0.82829454]
[1738243816184,17.74759514,241.52,241.49,0.02650374]
[1738243816479,5.5805,241.51,241.46,0.82829454]
[1738243816775,1.4392,241.51,241.32,1.3762]
[1738243816975,5.5805,241.51,241.38,4.1433]
[1738243817171,1.4392,241.51,241.32,1.3762]
[1738243817574,4.1424,241.44,241.32,5.5206]
[1738243817780,4.16943406,241.44,241.39,0.03129119]
[1738243818284,4.1428,241.42,241.39,0.03129119]
[1738243818478,0.02703406,241.44,241.23,17.74759514]
[1738243818683,17.74759514,241.37,241.15,17.74759514]
[1738243818886,1.3469,241.36,241.16,0.82932492]
[1738243819082,1.3469,241.36,241.19,17.74759514]
[1738243819274,1.3469,241.36,241.27,4.1453]
[1738243819483,1.3469,241.36,241.15,17.74759514]
[1738243819786,0.02991253,241.34,241.29,0.03185045]
[1738243819983,4.1448,241.31,241.18,4.1468]
[1738243820284,1.3469,241.36,241.19,17.74759514]
[1738243820485,1.3469,241.36,241.15,17.74759514]
[1738243821387,0.02929736,241.28,241.23,0.02997427]
[1738243821586,0.02929736,241.28,241.09,81.92]
[1738243821781,0.02929736,241.28,241.03,17.74759514]
[1738243821782,17.74759514,241.26,241.03,17.74759514]
[1738243821983,17.74759514,241.21,241.0,63.68558593]
[1738243822184,1.3862,241.2,241.0,63.68558593]
[1738243822376,1.3862,241.2,241.09,4.1484]
[1738243822583,1.3862,241.2,241.0,63.68558593]
[1738243822885,0.02925847,241.17,241.12,0.02841505]
[1738243823478,4.1481,241.11,241.03,4.1494]
[1738243823684,4.1481,241.11,241.0,45.93799079]
[1738243823885,0.02925847,241.17,241.0,63.68558593]
[1738243824085,1.3862,241.2,241.04,17.74759514]
[1738243824284,1.3862,241.2,241.0,63.68558593]
[1738243824790,1.3862,241.2,241.09,17.74759514]
[1738243824995,0.02702555,241.13,241.09,17.74759514]
[1738243825189,0.02702555,241.13,241.12,4.1479]
[1738243825388,1.3862,241.2,241.09,17.74759514]
[1738243825686,1.3862,241.2,241.13,17.74759514]
[1738243826286,1.3862,241.2,241.14,4.1475]
[1738243826484,1.3862,241.2,241.08,17.74759514]
[1738243826687,0.03014314,241.19,241.14,0.03018572]
[1738243827591,0.03014314,241.19,241.17,4.147]
[1738243828590,1.4455,241.29,241.16,17.74759514]
[1738243828783,1.4455,241.29,241.2,17.74759514]
[1738243828988,1.4455,241.29,241.16,17.74759514]
[1738243829793,1.4455,241.29,241.18,4.1467]
[1738243829988,0.03043754,241.25,241.2,0.02860228]
[1738243830492,1.4455,241.29,241.08,17.74759514]
[1738243830888,0.03136238,241.25,241.2,0.02719541]
[1738243831489,0.03136238,241.25,241.23,4.1459]
[1738243842793,0.03136238,241.25,241.2,0.02719541]
[1738243843296,4.1461,241.23,241.2,0.02719541]
[1738243843490,0.03136238,241.25,241.2,0.02719541]
[1738243843695,4.1462,241.22,241.2,0.02719541]
[1738243844296,4.1462,241.22,241.15,4.1473]
[1738243845099,1.4106,241.23,241.15,17.74759514]
[1738243845498,1.4106,241.23,241.19,17.74759514]
[1738243845701,1.4106,241.23,241.21,4.1463]
[1738243845999,1.4106,241.23,241.19,17.74759514]
[1738243846198,1.4106,241.23,241.2,4.1465]
[1738243846395,1.4106,241.23,241.17,0.02931536]
[1738243847093,4.1467,241.19,241.17,0.02931536]
[1738243847297,2.7868,241.23,241.07,17.74759514]
[1738243847601,4.1471,241.17,241.07,17.74759514]
[1738243847797,2.7868,241.23,241.03,17.74759514]
[1738243848194,4.1468,241.19,241.13,4.1477]
[1738243848395,2.7868,241.23,241.15,17.74759514]
[1738243848596,8.2854,241.43,241.19,17.74759514]
[1738243848801,1.3971,241.39,241.23,17.74759514]
[1738243849200,4.145,241.29,241.23,21.89339514]
[1738243849404,0.02883197,241.32,241.19,17.74759514]
[1738243849602,0.02883197,241.32,241.24,0.02730015]
[1738243849799,1.3165,241.38,241.24,0.02730015]
[1738243850002,0.0279151,241.3,241.24,0.02730015]
[1738243850304,4.1453,241.27,241.24,0.02730015]
[1738243850604,0.0279151,241.3,241.24,0.02730015]
[1738243851503,4.1728151,241.3,241.24,4.17300015]
[1738243852103,0.0279151,241.3,241.24,0.02730015]
[1738243852505,4.145,241.29,241.24,4.17300015]
[1738243852698,0.0279151,241.3,241.24,0.02730015]
[1738243852904,0.0279151,241.3,241.09,4.2]
[1738243853305,17.74759514,241.3,241.07,1.4207]
[1738243854107,0.03044676,241.23,241.18,0.02611967]
[1738243854711,0.03044676,241.23,241.07,19.16829514]
[1738243854912,17.74759514,241.3,241.07,19.16829514]
[1738243854913,17.74759514,241.3,241.07,17.74759514]
[1738243855111,17.74759514,241.26,241.13,4.1477]
[1738243855406,2.7673,241.25,241.13,4.1477]
[1738243855606,4.1468,241.19,241.13,4.1477]
[1738243855811,2.7673,241.25,241.13,4.1477]
[1738243856008,0.02941063,241.18,241.17,21.89459514]
[1738243856215,1.3499,241.25,241.17,17.74759514]
[1738243856411,1.4174,241.39,241.22,17.74759514]
[1738243856707,4.1444,241.33,241.22,17.74759514]
[1738243857309,0.03109555,241.3,241.27,4.1451]
[1738243858210,0.03109555,241.3,241.26,4.1455]
[1738243858812,0.03109555,241.3,241.25,0.02933784]
[1738243859414,0.03109555,241.3,241.28,4.1451]
[1738243859713,0.03109555,241.3,241.25,0.02933784]
[1738243859915,0.03109555,241.3,241.28,4.1451]
[1738243860212,0.03109555,241.3,241.25,0.02933784]
[1738243860408,45.85459502,241.63,241.27,28.93039511]
[1738243860609,1.3744,241.49,241.39,28.93039511]
[1738243861310,1.3744,241.49,241.44,4.1424]
[1738243861510,144.24973993,241.68,241.47,28.93039511]
[1738243861712,1.3573,241.64,241.51,28.93039511]
[1738243861913,0.02648944,241.57,241.55,4.1404]
[1738243862109,0.02648944,241.57,241.54,0.02949253]
[1738243862412,0.02648944,241.57,241.55,4.1405]
[1738243862813,17.12587126,241.62,241.55,28.93039511]
[1738243863012,4.1386,241.67,241.59,4.1397]
[1738243863805,4.1119,241.74,241.6,4.1396]
[1738243864009,0.02922058,241.65,241.61,0.02936697]
[1738243864412,0.02963668,241.65,241.61,0.02936697]
[1738243864808,0.02963668,241.65,241.63,28.93039511]
[1738243865013,30.25989511,241.88,241.69,4.138]
[1738243865204,2.7824,241.83,241.67,28.93039511]
[1738243866218,0.02715719,241.77,241.73,0.03079407]
[1738243866718,28.93039511,241.74,241.45,28.93039511]
[1738243866912,28.93039511,241.64,241.46,1.3906]
[1738243867408,28.93039511,241.64,241.46,5.5326]
[1738243867611,28.93039511,241.64,241.46,1.3906]
[1738243867822,0.03090482,241.57,241.53,0.02644927]
[1738243868109,28.93039511,241.68,241.46,1.3906]
[1738243868314,0.02926306,241.57,241.53,0.02634775]
[1738243868815,0.03122005,241.57,241.53,0.02616437]
[1738243869014,0.03122005,241.57,241.54,28.93039511]
[1738243869208,28.93039511,241.76,241.54,28.93039511]
[1738243869908,28.93039511,241.8,241.58,28.93039511]
[1738243870414,4.1387,241.66,241.59,4.1398]
[1738243870611,0.0277201,241.71,241.54,28.93039511]
[1738243870818,28.93039511,241.72,241.61,0.02917982]
[1738243871018,0.02949858,241.62,241.61,0.02917982]
[1738243871216,28.93039511,241.72,241.5,28.93039511]
[1738243871514,0.02682329,241.64,241.59,0.02790448]
[1738243871720,4.1394,241.62,241.59,0.02790448]
[1738243872014,0.02682329,241.64,241.59,0.02790448]
[1738243872712,4.1396,241.61,241.59,0.02790448]
[1738243873509,4.1401,241.58,241.48,4.1416]
[1738243873815,28.93039511,241.68,241.46,1.3906]
[1738243874017,28.93039511,241.68,241.49,28.93039511]
[1738243874518,4.1399,241.59,241.52,4.1409]
[1738243874816,4.1399,241.59,241.56,0.03036665]